bitfinex-derivatives/quotes_BTCF0:USTF0_20220103
["timestamp","ask_amount","ask_price","bid_price","bid_amount"]
[1641182157730,1.63924255,46846.0,46843.0,0.09000814]
[1641182159031,1.82624255,46846.0,46843.0,0.09000814]
[1641182159232,1.63824255,46846.0,46843.0,0.09000814]
[1641182160535,1.45124255,46846.0,46843.0,0.09000814]
[1641182160934,1.45124255,46846.0,46844.0,0.318807]
[1641182161137,1.63824255,46846.0,46844.0,0.318807]
[1641182161737,0.187,46846.0,46844.0,0.318807]
[1641182161937,0.187,46846.0,46843.0,0.09000814]
[1641182163037,0.19,46846.0,46843.0,0.09000814]
[1641182164338,1.4534691,46844.0,46843.0,0.09000814]
[1641182164540,1.4534691,46844.0,46843.0,0.09980214]
[1641182164739,1.29022611,46844.0,46843.0,0.15012967]
[1641182164939,1.29022611,46844.0,46843.0,0.46947767]
[1641182165143,0.174,46844.0,46843.0,0.64547767]
[1641182165549,0.174,46844.0,46843.0,0.64647767]
[1641182166356,0.26483943,46844.0,46843.0,0.67759203]
[1641182166649,0.09083943,46844.0,46843.0,0.50159203]
[1641182167156,0.22983943,46844.0,46843.0,0.68859203]
[1641182167450,0.22983943,46844.0,46843.0,0.68959203]
[1641182167657,0.22983943,46844.0,46843.0,1.00879803]
[1641182168551,0.22983943,46844.0,46843.0,0.82179803]
[1641182168752,0.09083943,46844.0,46843.0,0.82179803]
[1641182169053,0.22983943,46844.0,46843.0,1.00879803]
[1641182170355,0.09083943,46844.0,46843.0,0.82179803]
[1641182171054,0.23783943,46844.0,46843.0,1.00779803]
[1641182172557,0.09083943,46844.0,46843.0,0.82179803]
[1641182173058,0.24483943,46844.0,46843.0,1.00979803]
[1641182173459,0.154,46844.0,46843.0,0.64854167]
[1641182174469,0.09083943,46844.0,46843.0,0.46054167]
[1641182174671,0.09083943,46844.0,46843.0,0.45954167]
[1641182174862,0.09083943,46844.0,46843.0,0.58064842]
[1641182175061,0.09083943,46844.0,46843.0,0.76364842]
[1641182175062,0.182,46844.0,46843.0,0.76364842]
[1641182175266,0.182,46844.0,46843.0,0.64254167]
[1641182175863,0.27283943,46844.0,46843.0,1.00440806]
[1641182176463,0.09083943,46844.0,46843.0,0.82140806]
[1641182176661,0.09083943,46844.0,46843.0,0.50220206]
[1641182176862,0.15715943,46844.0,46843.0,0.50220206]
[1641182177061,0.15715943,46844.0,46843.0,0.68220206]
[1641182177262,0.33615943,46844.0,46843.0,0.68220206]
[1641182177866,1.78958567,46844.0,46843.0,0.32033567]
[1641182178564,0.33615943,46844.0,46843.0,0.32033567]
[1641182179184,0.34015943,46844.0,46843.0,0.22533567]
[1641182180585,0.15715943,46844.0,46843.0,0.14033567]
[1641182181185,0.34415943,46844.0,46843.0,0.25033567]
[1641182181886,1.79730634,46844.0,46843.0,0.25033567]
[1641182182481,1.79730634,46844.0,46843.0,0.14033567]
[1641182182680,1.61030634,46844.0,46839.0,0.36186639]
[1641182182883,0.15715943,46844.0,46839.0,0.36186639]
[1641182183281,0.34715943,46844.0,46838.0,0.50220206]
[1641182184182,1.45308514,46842.0,46838.0,0.14033567]
[1641182185081,1.45308514,46841.0,46838.0,0.14033567]
[1641182185981,1.54392457,46841.0,46838.0,0.14033567]
[1641182187283,1.63408514,46841.0,46838.0,0.14033567]
[1641182188087,0.09083943,46840.0,46838.0,0.14033567]
[1641182189284,0.27483943,46840.0,46838.0,0.14033567]
[1641182189885,1.63708514,46840.0,46838.0,0.14033567]
[1641182190487,1.45308514,46840.0,46838.0,0.14033567]
[1641182190689,1.72392457,46839.0,46838.0,0.14033567]
[1641182190886,1.54392457,46839.0,46838.0,0.14033567]
[1641182191088,1.72392457,46839.0,46838.0,0.14033567]
[1641182191288,0.27883943,46839.0,46838.0,0.14033567]
[1641182191990,0.45883943,46839.0,46838.0,0.14033567]
[1641182192490,0.27083943,46839.0,46838.0,0.14033567]
[1641182193292,0.45883943,46839.0,46838.0,0.14033567]
[1641182193589,0.27883943,46839.0,46838.0,0.14033567]
[1641182194590,0.09083943,46839.0,46838.0,0.14033567]
[1641182195192,0.189,46839.0,46838.0,0.14033567]
[1641182195995,0.27984547,46839.0,46838.0,0.14033567]
[1641182196593,0.09084547,46839.0,46838.0,0.14033567]
[1641182196794,0.09084547,46839.0,46835.0,0.36147119]
[1641182197296,0.27884547,46839.0,46835.0,0.36147119]
[1641182197696,0.188,46839.0,46833.0,0.96392317]
[1641182197898,1.304,46839.0,46833.0,0.36147119]
[1641182198096,0.18,46838.0,46833.0,0.36147119]
[1641182198796,1.45362736,46834.0,46832.0,0.50180686]
[1641182201205,1.63962736,46834.0,46832.0,0.50180686]
[1641182202012,0.09084547,46833.0,46832.0,0.50180686]
[1641182203207,0.27784547,46833.0,46832.0,0.50180686]
[1641182204509,0.09084547,46833.0,46832.0,0.50180686]
[1641182204711,0.09084547,46833.0,46832.0,0.14033567]
[1641182205234,0.27684547,46833.0,46832.0,0.14033567]
[1641182205412,0.186,46833.0,46832.0,0.14033567]
[1641182206011,0.27684547,46833.0,46832.0,0.14033567]
[1641182206514,0.09084547,46833.0,46832.0,0.14033567]
[1641182207313,0.27784547,46833.0,46832.0,0.14033567]
[1641182208616,0.09084547,46833.0,46832.0,0.14033567]
[1641182209216,0.27684547,46833.0,46832.0,0.14033567]
[1641182209615,1.302,46833.0,46827.0,0.14033567]
[1641182209816,0.51258904,46822.0,46817.0,0.91819036]
[1641182210018,0.18,46818.0,46817.0,0.91819036]
[1641182210216,0.009794,46817.0,46801.0,0.18]
[1641182210416,3.94863354,46814.0,46801.0,0.18]
[1641182210814,0.14033567,46802.0,46801.0,0.18]
[1641182211017,0.20018567,46802.0,46801.0,0.18]
[1641182213239,0.38118567,46802.0,46801.0,0.18]
[1641182214533,0.20018567,46802.0,46801.0,0.18]
[1641182215342,0.33618567,46802.0,46801.0,0.18]
[1641182216739,0.20018567,46802.0,46801.0,0.18]
[1641182216943,0.14033567,46802.0,46801.0,0.18]
[1641182218441,0.02136474,46822.0,46807.0,0.42727833]
[1641182218640,1.38862736,46817.0,46814.0,0.18]
[1641182218840,1.38862736,46817.0,46815.0,0.02135981]
[1641182219242,1.57062736,46817.0,46815.0,0.02135981]
[1641182220146,0.09088361,46816.0,46815.0,0.02135981]
[1641182220741,0.09088361,46816.0,46814.0,0.25618]
[1641182220941,0.182,46817.0,46814.0,0.25618]
[1641182221341,0.182,46817.0,46814.0,0.44218]
[1641182222546,0.09088109,46816.0,46814.0,0.44218]
[1641182222743,0.09088109,46816.0,46814.0,0.07318]
[1641182223345,0.09088109,46816.0,46814.0,0.183]
[1641182223346,0.178,46816.0,46814.0,0.183]
[1641182224445,0.09088109,46815.0,46814.0,0.183]
[1641182224645,0.09088109,46815.0,46811.0,0.44860765]
[1641182225251,0.27188109,46815.0,46811.0,0.63060765]
[1641182226445,0.09088109,46814.0,46812.0,0.843595]
[1641182227246,0.27188109,46814.0,46812.0,1.026595]
[1641182227947,0.09088109,46813.0,46812.0,1.026595]
[1641182228348,1.45256204,46817.0,46815.0,0.15533234]
[1641182228548,1.45256204,46817.0,46815.0,0.05775]
[1641182228749,1.45256204,46819.0,46816.0,0.320496]
[1641182229351,1.45256204,46819.0,46816.0,0.516496]
[1641182230054,1.45256204,46820.0,46818.0,0.36146786]
[1641182231055,0.18,46824.0,46815.0,0.90117501]
[1641182231357,0.18,46824.0,46818.0,0.195]
[1641182231554,0.14033567,46826.0,46818.0,0.195]
[1641182232555,0.18,46824.0,46815.0,0.19808567]
[1641182232955,0.14033567,46826.0,46815.0,0.19808567]
[1641182233356,0.14033567,46826.0,46816.0,0.02135927]
[1641182234256,0.36288557,46819.0,46816.0,0.20135927]
[1641182234655,0.36288557,46819.0,46816.0,0.02135927]
[1641182234855,0.36288557,46819.0,46816.0,0.20135927]
[1641182235056,0.36288557,46820.0,46816.0,0.20135927]
[1641182235259,0.36288557,46820.0,46816.0,0.39735927]
[1641182236157,0.36288557,46820.0,46816.0,0.21735927]
[1641182236558,0.36288557,46820.0,46816.0,0.02135927]
[1641182236959,0.36288557,46820.0,46816.0,0.20135927]
[1641182237160,0.36288557,46820.0,46817.0,0.321651]
[1641182238260,0.36288557,46820.0,46816.0,0.64455629]
[1641182238659,0.36288557,46820.0,46816.0,0.44855629]
[1641182239261,0.36288557,46820.0,46816.0,0.64255629]
[1641182239861,0.36288557,46819.0,46816.0,0.64255629]
[1641182240660,0.36288557,46819.0,46816.0,0.44855629]
[1641182240859,0.36288557,46819.0,46816.0,0.42719702]
[1641182241262,0.36288557,46819.0,46816.0,0.62219702]
[1641182242663,0.36288557,46819.0,46816.0,0.42719702]
[1641182243163,0.84671292,46822.0,46821.0,0.06426815]
[1641182243563,0.84671292,46822.0,46817.0,0.322346]
[1641182243963,0.84671292,46822.0,46816.0,0.193]
[1641182244164,0.84671292,46822.0,46816.0,0.373]
[1641182244363,0.84671292,46822.0,46816.0,0.193]
[1641182244563,0.84671292,46822.0,46816.0,0.18]
[1641182245466,0.84671292,46823.0,46816.0,0.369]
[1641182245864,0.84671292,46823.0,46816.0,0.249]
[1641182246063,0.84671292,46823.0,46816.0,0.369]
[1641182246467,0.84671292,46822.0,46816.0,0.369]
[1641182246665,0.84671292,46822.0,46816.0,0.18]
[1641182247067,0.84671292,46822.0,46817.0,0.320465]
[1641182248168,0.84671292,46822.0,46816.0,0.19]
[1641182248668,0.84671292,46822.0,46815.0,0.14033567]
[1641182249268,0.84671292,46822.0,46815.0,0.32933567]
[1641182249669,0.84671292,46822.0,46816.0,0.18]
[1641182250070,0.84671292,46822.0,46817.0,0.318336]
[1641182250472,0.84671292,46823.0,46815.0,0.32933567]
[1641182250670,0.08056,46822.0,46815.0,0.32933567]
[1641182251269,0.92727292,46822.0,46815.0,0.32933567]
[1641182252077,0.09087983,46821.0,46816.0,0.84342501]
[1641182252271,0.09087983,46821.0,46818.0,0.60263246]
[1641182253470,0.09087983,46821.0,46818.0,0.79263246]
[1641182254071,1.54344187,46821.0,46819.0,0.36084657]
[1641182255373,1.45256204,46821.0,46819.0,0.188]
[1641182256775,1.45256204,46821.0,46819.0,0.36084657]
[1641182257375,1.45256204,46821.0,46819.0,0.54884657]
[1641182257575,1.45256204,46822.0,46819.0,0.188]
[1641182258680,1.45256204,46822.0,46818.0,0.36084657]
[1641182258976,1.45256204,46822.0,46819.0,0.36084657]
[1641182259579,1.45256204,46822.0,46818.0,0.54784657]
[1641182260782,1.45256204,46822.0,46818.0,0.36084657]
[1641182261380,1.45256204,46822.0,46818.0,0.54784657]
[1641182262683,1.45256204,46822.0,46818.0,0.36084657]
[1641182263484,1.45256204,46822.0,46818.0,0.54784657]
[1641182264687,1.45256204,46822.0,46818.0,0.36084657]
[1641182265387,1.45256204,46822.0,46818.0,0.54784657]
[1641182266888,1.45256204,46822.0,46818.0,0.36084657]
[1641182267389,1.45256204,46822.0,46818.0,0.54784657]
[1641182268794,1.45256204,46822.0,46818.0,0.36084657]
[1641182269397,1.45256204,46823.0,46819.0,0.36084657]
[1641182271302,1.45256204,46822.0,46818.0,0.36084657]
[1641182271498,1.45256204,46822.0,46819.0,0.187]
[1641182272699,1.45256204,46822.0,46818.0,0.36084657]
[1641182273500,1.45256204,46822.0,46818.0,0.54784657]
[1641182274800,1.45256204,46822.0,46818.0,0.36084657]
[1641182275401,1.45256204,46822.0,46818.0,0.54784657]
[1641182276102,1.45256204,46821.0,46819.0,0.36084657]
[1641182276902,1.45256204,46821.0,46818.0,0.36084657]
[1641182277501,1.45256204,46821.0,46819.0,0.19]
[1641182277701,1.45256204,46820.0,46819.0,0.19]
[1641182278902,1.45256204,46820.0,46817.0,0.36084657]
[1641182279505,1.45256204,46820.0,46817.0,0.55184657]
[1641182280708,1.296,46818.0,46817.0,0.36084657]
[1641182280906,1.20965,46818.0,46817.0,0.36084657]
[1641182281307,2.66221204,46818.0,46817.0,0.36084657]
[1641182281509,2.66221204,46818.0,46817.0,0.175]
[1641182282106,1.54621204,46818.0,46817.0,0.175]
[1641182282508,0.18452983,46818.0,46817.0,0.175]
[1641182282707,0.09087983,46818.0,46817.0,0.175]
[1641182283108,0.09087983,46818.0,46817.0,0.23907884]
[1641182283307,0.09087983,46818.0,46817.0,0.06407884]
[1641182283509,0.09087983,46818.0,46817.0,0.56983684]
[1641182284209,0.09087983,46818.0,46817.0,0.25107884]
[1641182284908,0.09087983,46818.0,46817.0,0.06407884]
[1641182285210,0.09087983,46820.0,46817.0,0.06407884]
[1641182285408,0.09087983,46820.0,46817.0,0.25707884]
[1641182286409,0.09087983,46818.0,46817.0,0.25707884]
[1641182286710,0.09087983,46818.0,46817.0,0.06407884]
[1641182287309,0.09087983,46820.0,46817.0,0.06407884]
[1641182287508,0.09087983,46820.0,46817.0,0.25807884]
[1641182288311,0.27087983,46820.0,46817.0,0.25807884]
[1641182289010,0.09087983,46820.0,46817.0,0.25807884]
[1641182289510,0.09087983,46820.0,46817.0,0.25407884]
[1641182289809,0.27087983,46820.0,46817.0,0.25407884]
[1641182290310,0.09087983,46819.0,46817.0,0.25407884]
[1641182291511,0.09087983,46819.0,46817.0,0.44607884]
[1641182291715,0.09087983,46820.0,46817.0,0.44607884]
[1641182292713,0.27087983,46820.0,46817.0,0.25607884]
[1641182292914,0.09087983,46820.0,46817.0,0.06407884]
[1641182293413,0.09087983,46820.0,46817.0,0.25407884]
[1641182294615,0.27087983,46820.0,46817.0,0.06407884]
[1641182295417,0.27087983,46820.0,46817.0,0.25407884]
[1641182295617,0.09087983,46819.0,46817.0,0.25407884]
[1641182296719,0.09087983,46819.0,46817.0,0.06407884]
[1641182297518,0.09087983,46819.0,46817.0,0.25607884]
[1641182297818,0.09087983,46819.0,46818.0,0.318265]
[1641182298019,0.09087983,46824.0,46818.0,0.318265]
[1641182298220,0.27087983,46824.0,46817.0,0.25607884]
[1641182298719,0.09087983,46819.0,46817.0,0.06407884]
[1641182299519,0.09087983,46819.0,46817.0,0.25607884]
[1641182299719,0.09087983,46819.0,46818.0,0.321957]
[1641182300018,0.09087983,46819.0,46817.0,0.25607884]
[1641182300219,0.27087983,46823.0,46817.0,0.25607884]
[1641182300720,0.27087983,46823.0,46817.0,0.06407884]
[1641182300920,0.09087983,46822.0,46817.0,0.06407884]
[1641182301421,0.09087983,46822.0,46817.0,0.25207884]
[1641182302821,0.09087983,46823.0,46817.0,0.06407884]
[1641182303422,0.09087983,46823.0,46817.0,0.25107884]
[1641182303722,1.72344187,46824.0,46817.0,0.25107884]
[1641182304123,1.54344187,46824.0,46817.0,0.25107884]
[1641182304530,0.09087983,46822.0,46817.0,0.25107884]
[1641182304825,0.09087983,46822.0,46817.0,0.06407884]
[1641182305425,1.72344187,46824.0,46817.0,0.25207884]
[1641182306127,0.09087983,46823.0,46817.0,0.25207884]
[1641182306327,0.18,46821.0,46817.0,0.188]
[1641182306729,0.18,46821.0,46815.0,0.14033567]
[1641182307529,0.18,46821.0,46815.0,0.32333567]
[1641182307931,1.54344187,46820.0,46815.0,0.32333567]
[1641182308531,1.54344187,46820.0,46815.0,0.183]
[1641182308932,1.54344187,46820.0,46812.0,0.009794]
[1641182309131,0.14033567,46817.0,46812.0,0.009794]
[1641182309331,0.14033567,46817.0,46813.0,0.12117954]
[1641182309532,1.305794,46816.0,46813.0,0.12117954]
[1641182309737,1.305794,46816.0,46812.0,0.187]
[1641182309933,0.18,46813.0,46812.0,0.187]
[1641182310732,0.18,46813.0,46810.0,0.50118224]
[1641182311131,1.21667383,46816.0,46810.0,0.50118224]
[1641182311532,0.09087983,46812.0,46810.0,0.31833567]
[1641182312635,0.09087983,46812.0,46810.0,0.14033567]
[1641182313534,0.361,46812.0,46810.0,0.31833567]
[1641182313737,0.181,46812.0,46810.0,0.31833567]
[1641182314736,0.09087983,46811.0,46810.0,0.31833567]
[1641182315237,0.09087983,46811.0,46810.0,0.14033567]
[1641182315438,0.27087983,46811.0,46810.0,0.32033567]
[1641182317441,0.26987983,46811.0,46810.0,0.32033567]
[1641182318744,0.09087983,46811.0,46810.0,0.14033567]
[1641182319443,0.27087983,46811.0,46810.0,0.32133567]
[1641182320250,0.18,46811.0,46810.0,0.32133567]
[1641182320845,0.09087983,46813.0,46810.0,0.32133567]
[1641182320846,0.09087983,46813.0,46810.0,0.14033567]
[1641182321047,0.09087983,46811.0,46810.0,0.14033567]
[1641182321446,0.09087983,46811.0,46810.0,0.31733567]
[1641182322249,0.27587983,46813.0,46810.0,0.31733567]
[1641182322750,0.09087983,46812.0,46810.0,0.14033567]
[1641182323548,0.27487983,46812.0,46810.0,0.31933567]
[1641182324253,0.184,46812.0,46810.0,0.31933567]
[1641182324753,0.184,46812.0,46810.0,0.14033567]
[1641182324952,0.09087983,46813.0,46810.0,0.14033567]
[1641182325154,0.09087983,46811.0,46810.0,0.14033567]
[1641182325357,0.09087983,46811.0,46810.0,0.31833567]
[1641182326857,0.09087983,46811.0,46810.0,0.14033567]
[1641182327355,0.09087983,46811.0,46810.0,0.32033567]
[1641182327555,0.27087983,46811.0,46810.0,0.32033567]
[1641182328557,0.2691,46811.0,46810.0,0.32033567]
[1641182328758,0.0891,46811.0,46805.0,0.14033567]
[1641182328956,1.116,46810.0,46803.0,1.9112]
[1641182329155,0.2691,46811.0,46803.0,1.9112]
[1641182329356,0.146,46810.0,46803.0,0.187]
[1641182329556,0.14033567,46809.0,46803.0,0.187]
[1641182330157,0.2312155,46809.0,46804.0,0.12119951]
[1641182330360,0.84729678,46807.0,46804.0,0.12119951]
[1641182331359,0.84729678,46807.0,46804.0,0.189]
[1641182332260,0.84729678,46806.0,46804.0,0.189]
[1641182332662,0.84729678,46806.0,46801.0,0.44870533]
[1641182333072,0.84729678,46806.0,46805.0,0.320954]
[1641182333373,0.84729678,46806.0,46801.0,0.64070533]
[1641182333574,0.65429165,46806.0,46805.0,0.320355]
[1641182333873,0.09087983,46808.0,46803.0,0.002074]
[1641182333874,0.65429165,46807.0,46803.0,0.002074]
[1641182334373,0.65429165,46807.0,46804.0,0.12119368]
[1641182334776,0.65429165,46807.0,46805.0,0.318887]
[1641182334974,0.09087983,46808.0,46805.0,0.318887]
[1641182335177,0.28067383,46816.0,46805.0,0.318887]
[1641182335476,0.28067383,46816.0,46805.0,0.513887]
[1641182335874,0.28067383,46816.0,46805.0,0.195]
[1641182336275,0.28067383,46816.0,46806.0,0.320291]
[1641182336475,0.09087983,46815.0,46806.0,0.320291]
[1641182337374,0.09087983,46815.0,46806.0,0.503291]
[1641182337782,0.09087983,46815.0,46806.0,0.183]
[1641182338079,0.09087983,46815.0,46807.0,0.320431]
[1641182339477,0.09087983,46815.0,46807.0,0.504431]
[1641182340277,0.09087983,46815.0,46807.0,0.184]
[1641182340680,0.09087983,46815.0,46806.0,0.11801842]
[1641182341481,0.09087983,46815.0,46806.0,0.30201842]
[1641182341680,0.09087983,46815.0,46809.0,0.10875591]
[1641182343483,0.09087983,46815.0,46809.0,0.184]
[1641182344683,0.09087983,46815.0,46807.0,0.36084657]
[1641182345389,0.09087983,46815.0,46807.0,0.54484657]
[1641182345793,0.14033567,46810.0,46807.0,0.64385547]
[1641182345990,1.4545251,46809.0,46807.0,0.64385547]
[1641182346791,1.4545251,46809.0,46807.0,0.36084657]
[1641182346991,0.09087983,46809.0,46808.0,0.36084657]
[1641182349398,0.09087983,46809.0,46808.0,0.55084657]
[1641182349797,1.54540493,46809.0,46808.0,0.19]
[1641182350399,1.54540493,46809.0,46808.0,0.26726]
[1641182350797,1.54540493,46809.0,46808.0,0.07726]
[1641182351000,0.09087983,46809.0,46808.0,0.07726]
[1641182351399,0.09087983,46809.0,46808.0,0.26726]
[1641182352801,0.09087983,46809.0,46808.0,0.07726]
[1641182353404,0.09087983,46809.0,46808.0,0.63110657]
[1641182354305,0.09087983,46809.0,46808.0,0.27026]
[1641182354904,0.09087983,46809.0,46808.0,0.07726]
[1641182355105,0.09087983,46809.0,46808.0,0.26326615]
[1641182355505,0.09087983,46809.0,46808.0,0.45726615]
[1641182356205,0.09087983,46809.0,46808.0,1.05989861]
[1641182356807,0.09087983,46809.0,46808.0,1.08991419]
[1641182358810,0.09087983,46809.0,46808.0,0.89591419]
[1641182359424,0.09087983,46809.0,46808.0,1.08991419]
[1641182360725,0.09087983,46809.0,46808.0,0.89591419]
[1641182361423,0.09087983,46809.0,46808.0,1.08991419]
[1641182362825,0.09087983,46809.0,46808.0,0.89591419]
[1641182363426,0.09087983,46809.0,46808.0,1.08991419]
[1641182364029,0.09087983,46809.0,46808.0,1.41217819]
[1641182364828,1.4545251,46812.0,46808.0,0.61554573]
[1641182365029,1.4545251,46812.0,46808.0,0.29328173]
[1641182365530,1.4545251,46812.0,46810.0,0.36281557]
[1641182366328,1.4545251,46811.0,46809.0,0.36281557]
[1641182367532,1.4545251,46811.0,46809.0,0.54581557]
[1641182368229,0.14033567,46810.0,46809.0,0.54581557]
[1641182368729,0.14033567,46810.0,46807.0,0.60469262]
[1641182368926,0.14033567,46810.0,46806.0,0.36281557]
[1641182369425,0.14033567,46810.0,46806.0,0.55081557]
[1641182369628,0.09087983,46809.0,46808.0,0.47506688]
[1641182369827,0.09087983,46809.0,46808.0,0.53710688]
[1641182370026,0.09087983,46809.0,46808.0,0.53913588]
[1641182370225,0.09087983,46809.0,46808.0,0.66033088]
[1641182370626,0.09087983,46809.0,46808.0,0.17632031]
[1641182370827,0.09087983,46809.0,46808.0,0.17429131]
[1641182371127,0.09087983,46809.0,46808.0,0.06204]
[1641182371427,0.09087983,46809.0,46808.0,0.25604]
[1641182372728,0.09087983,46809.0,46808.0,0.06204]
[1641182372931,0.09087983,46809.0,46808.0,0.36294881]
[1641182373429,0.09087983,46809.0,46808.0,0.55694881]
[1641182374835,0.09087983,46809.0,46808.0,0.36294881]
[1641182375631,0.09087983,46809.0,46808.0,0.55694881]
[1641182376734,0.09087983,46809.0,46808.0,0.36294881]
[1641182377439,0.09087983,46809.0,46808.0,0.55694881]
[1641182378537,1.54537598,46809.0,46808.0,0.194]
[1641182378737,1.54537598,46809.0,46807.0,0.36294881]
[1641182379245,0.09087983,46809.0,46808.0,0.36294881]
[1641182380147,1.54537598,46809.0,46807.0,0.55594881]
[1641182380347,1.60967598,46809.0,46807.0,0.55594881]
[1641182380948,0.009794,46808.0,46807.0,0.55594881]
[1641182381147,0.03116795,46808.0,46804.0,0.8435873]
[1641182381350,1.296,46805.0,46802.0,1.20533951]
[1641182381547,1.296,46805.0,46802.0,0.43231634]
[1641182382050,1.296,46805.0,46804.0,0.60547178]
[1641182382247,1.57667134,46805.0,46804.0,0.60547178]
[1641182382650,1.57667134,46805.0,46804.0,0.59067178]
[1641182382848,1.57667134,46805.0,46797.0,1.32560747]
[1641182383048,0.18,46800.0,46797.0,1.32560747]
[1641182383449,0.18,46804.0,46789.0,2.11403567]
[1641182383649,0.18,46804.0,46789.0,0.14033567]
[1641182384050,0.55855117,46805.0,46794.0,0.18]
[1641182384250,0.14033567,46798.0,46794.0,0.18]
[1641182384449,0.14033567,46798.0,46796.0,0.08002482]
[1641182384649,0.14033567,46798.0,46796.0,0.15417482]
[1641182384850,0.14033567,46798.0,46797.0,0.322197]
[1641182385251,0.14033567,46798.0,46797.0,0.52356484]
[1641182385449,0.14033567,46798.0,46797.0,0.72868606]
[1641182385650,0.2312155,46798.0,46797.0,0.72868606]
[1641182386550,0.09087983,46798.0,46797.0,0.72868606]
[1641182386753,0.09087983,46798.0,46797.0,0.53568606]
[1641182387454,0.09087983,46798.0,46797.0,0.72768606]
[1641182387653,0.09087983,46804.0,46797.0,0.72768606]
[1641182387853,0.09087983,46804.0,46797.0,0.72668606]
[1641182388152,0.09087983,46804.0,46799.0,0.17102263]
[1641182389154,0.09087983,46804.0,46799.0,0.35102263]
[1641182389454,0.12164794,46804.0,46799.0,0.53702263]
[1641182389653,0.12164794,46804.0,46800.0,0.319469]
[1641182389954,0.12164794,46804.0,46800.0,1.119469]
[1641182390157,0.12164794,46804.0,46800.0,1.96710575]
[1641182390755,0.28067134,46805.0,46800.0,1.96710575]
[1641182391158,0.28067134,46805.0,46801.0,0.84763675]
[1641182391655,0.28067134,46805.0,46802.0,0.320656]
[1641182391855,0.28067134,46805.0,46801.0,0.84763675]
[1641182392057,0.28067134,46805.0,46804.0,0.36325474]
[1641182392959,0.28067134,46805.0,46801.0,0.84763675]
[1641182392960,0.28067134,46805.0,46802.0,0.36325474]
[1641182393556,0.28067134,46805.0,46802.0,0.55225474]
[1641182394959,0.28067134,46805.0,46803.0,0.36325474]
[1641182395561,0.43767134,46805.0,46803.0,0.53125474]
[1641182395758,0.43767134,46805.0,46803.0,0.168]
[1641182396958,0.28067134,46805.0,46800.0,0.36325474]
[1641182397559,0.43767134,46805.0,46800.0,0.53025474]
[1641182398062,0.43767134,46805.0,46801.0,0.320919]
[1641182398259,0.43767134,46805.0,46800.0,0.53025474]
[1641182398760,0.43767134,46805.0,46800.0,0.167]
[1641182398959,0.28067134,46805.0,46798.0,0.15677701]
[1641182399560,0.47267134,46805.0,46798.0,0.15677701]
[1641182400861,0.28067134,46805.0,46798.0,0.15677701]
[1641182401462,0.47167134,46805.0,46798.0,0.15677701]
[1641182402764,0.36452134,46805.0,46798.0,0.15677701]
[1641182402964,0.18,46800.0,46794.0,0.36325474]
[1641182403364,1.116,46799.0,46794.0,0.36325474]
[1641182403563,0.009794,46798.0,46794.0,0.49825474]
[1641182404164,0.009794,46798.0,46794.0,0.135]
[1641182404366,1.296,46795.0,46794.0,0.135]
[1641182404566,1.50608567,46795.0,46794.0,0.135]
[1641182404867,1.32608567,46795.0,46790.0,0.36325474]
[1641182405266,1.50608567,46795.0,46790.0,0.36325474]
[1641182405466,1.69608567,46795.0,46790.0,0.36325474]
[1641182405866,1.69608567,46795.0,46789.0,0.60491407]
[1641182406266,1.69608567,46795.0,46786.0,0.36325474]
[1641182406667,0.14033567,46789.0,46786.0,0.36325474]
[1641182407370,0.18,46788.0,46783.0,0.36325474]
[1641182407571,0.49312967,46789.0,46783.0,0.36325474]
[1641182407783,0.31312967,46789.0,46783.0,0.36325474]
[1641182408085,1.42912967,46789.0,46783.0,0.36325474]
[1641182408483,0.84805612,46784.0,46781.0,0.96816881]
[1641182408684,0.84805612,46784.0,46781.0,0.36325474]
[1641182409086,1.96405612,46784.0,46781.0,0.36325474]
[1641182409486,1.00505612,46784.0,46779.0,0.96816881]
[1641182409686,0.84805612,46782.0,46779.0,0.36325474]
[1641182410686,0.157,46784.0,46778.0,0.36325474]
[1641182410687,0.14033567,46780.0,46778.0,0.36325474]
[1641182411289,0.20974567,46780.0,46779.0,0.12125811]
[1641182411487,0.38974567,46780.0,46779.0,0.12125811]
[1641182412798,0.20974567,46780.0,46779.0,0.12125811]
[1641182412990,0.20974567,46780.0,46778.0,0.36325474]
[1641182413393,0.14033567,46780.0,46775.0,0.85743075]
[1641182413594,0.35928792,46780.0,46779.0,0.84763675]
[1641182413793,0.35928792,46780.0,46779.0,0.93737675]
[1641182414292,0.35928792,46780.0,46779.0,0.08974]
[1641182414692,0.16105418,46780.0,46779.0,0.08974]
[1641182414892,0.09095225,46780.0,46779.0,0.08974]
[1641182415093,0.09095225,46780.0,46779.0,0.42300867]
[1641182415494,0.09095225,46780.0,46779.0,0.62000867]
[1641182415695,0.09095225,46780.0,46779.0,0.28674]
[1641182416699,1.544269,46788.0,46779.0,0.33733567]
[1641182416898,1.116,46787.0,46779.0,0.14033567]
[1641182417101,1.20582,46787.0,46779.0,0.14033567]
[1641182417398,0.0213814,46786.0,46779.0,0.14033567]
[1641182417598,0.0213814,46786.0,46779.0,0.32233567]
[1641182417798,1.45331675,46785.0,46783.0,0.36336972]
[1641182419000,0.09095225,46786.0,46784.0,0.36336972]
[1641182419001,1.544269,46786.0,46784.0,0.36336972]
[1641182419498,1.721269,46786.0,46784.0,0.54536972]
[1641182419701,1.63031675,46786.0,46784.0,0.54536972]
[1641182420404,2.74631675,46786.0,46784.0,0.54536972]
[1641182420604,1.63031675,46786.0,46784.0,0.54536972]
[1641182421008,1.544269,46785.0,46783.0,0.36336972]
[1641182421606,1.731269,46785.0,46783.0,0.53136972]
[1641182422606,0.187,46785.0,46783.0,0.168]
[1641182422808,0.36291747,46786.0,46777.0,0.2044686]
[1641182423608,0.55191747,46786.0,46777.0,0.3654686]
[1641182424910,0.36291747,46786.0,46777.0,0.2044686]
[1641182425110,1.296,46786.0,46777.0,0.2044686]
[1641182425311,1.296,46786.0,46777.0,0.14033567]
[1641182425510,1.48,46786.0,46777.0,0.30833567]
[1641182426010,0.36291747,46785.0,46777.0,0.30833567]
[1641182426212,1.116,46784.0,46777.0,0.30833567]
[1641182426710,1.25633567,46783.0,46777.0,0.30833567]
[1641182426910,1.25633567,46783.0,46777.0,0.14033567]
[1641182427411,1.61925314,46783.0,46777.0,0.14033567]
[1641182427612,1.79425314,46783.0,46777.0,0.32033567]
[1641182428814,1.61925314,46783.0,46777.0,0.14033567]
[1641182429612,1.75725314,46783.0,46777.0,0.32033567]
[1641182429812,0.64125314,46783.0,46777.0,0.32033567]
[1641182430015,0.27833567,46783.0,46777.0,0.32033567]
[1641182431114,0.14033567,46783.0,46777.0,0.14033567]
[1641182431515,0.30833567,46783.0,46777.0,0.31833567]
[1641182432317,0.38352567,46783.0,46777.0,0.31833567]